bitfinex/quotes_ETHUSD_20260313
["timestamp","ask_amount","ask_price","bid_price","bid_amount"]
[1773434584553,0.002,2108.5,2108.4,2.18003701]
[1773434587850,0.002,2108.5,2108.4,1.813]
[1773434588355,0.002,2108.5,2108.4,1.814]
[1773434589554,0.004,2108.5,2108.4,1.814]
[1773434589940,0.1780899,2108.5,2108.2,0.001]
[1773434590144,0.1770899,2108.4,2108.2,0.001]
[1773434590347,0.002,2108.4,2108.2,0.001]
[1773434591151,0.002,2108.4,2108.3,1.814]
[1773434593039,1.33911714,2108.5,2108.3,1.814]
[1773434597556,1.18570061,2108.5,2108.3,2.27974398]
[1773434599158,1.18570061,2108.5,2108.3,1.814]
[1773434600377,1.33911714,2108.5,2108.3,1.814]
[1773434600938,1.33911714,2108.5,2108.3,1.815]
[1773434601138,1.34111714,2108.5,2108.3,1.815]
[1773434609172,0.002,2108.5,2108.4,0.46516525]
[1773434609376,1.24483306,2108.8,2108.4,0.46516525]
[1773434613478,1.24483306,2108.8,2108.5,0.001]
[1773434613655,1.24483306,2108.8,2108.5,0.46313641]
[1773434613853,0.002,2108.6,2108.5,0.46313641]
[1773434617683,0.73965722,2109.7,2108.5,1.18667702]
[1773434617987,0.002,2109.1,2108.6,0.499]
[1773434625383,0.002,2109.1,2108.7,1.814]
[1773434625569,0.002,2109.1,2108.7,2.313]
[1773434626165,0.002,2109.1,2108.7,2.314]
[1773434626369,0.002,2108.9,2108.7,2.314]
[1773434628270,0.002,2108.9,2108.7,1.815]
[1773434628602,0.004,2108.9,2108.7,1.815]
[1773434630891,0.002,2108.9,2108.7,1.815]
[1773434631271,0.002,2108.9,2108.7,2.314]
[1773434632890,0.002,2108.9,2108.8,0.499]
[1773434633196,0.002,2108.9,2108.7,2.27408999]
[1773434637284,0.46502117,2108.9,2108.7,1.815]
[1773434638005,0.002,2108.9,2108.7,1.815]
[1773434641704,0.46502117,2108.9,2108.7,1.815]
[1773434642690,0.002,2108.9,2108.7,1.815]
[1773434644307,1.18745213,2108.9,2108.7,2.27408999]
[1773434645410,0.002,2108.9,2108.7,2.27408999]
[1773434645616,0.002,2108.9,2108.8,0.45908999]
[1773434645915,0.002,2109.1,2108.8,0.45908999]
[1773434646131,0.0012,2109.1,2108.8,0.45908999]
[1773434646408,0.0012,2109.1,2108.8,1.1854924]
[1773434646593,0.0012,2109.1,2108.9,0.45908999]
[1773434652309,0.46422117,2109.1,2108.7,0.001]
[1773434652916,1.18545213,2108.9,2108.7,0.001]
[1773434653488,1.18545213,2108.9,2108.8,1.811]
[1773434653990,1.18544188,2109.0,2108.8,1.811]
[1773434654306,1.18544188,2109.0,2108.8,2.27008999]
[1773434655422,4.74265969,2109.1,2108.8,2.27008999]
[1773434657495,0.46422117,2109.1,2108.8,2.27008999]
[1773434657706,0.46422117,2109.1,2108.8,1.811]
[1773434664942,1.64956088,2109.1,2109.0,0.001]
[1773434671046,0.0012,2109.1,2109.0,0.001]
[1773434676032,1.18653971,2109.1,2109.0,0.001]
[1773434682233,0.0012,2109.1,2109.0,0.001]
[1773434682428,0.0012,2109.1,2109.0,0.46637889]
[1773434683538,1.67835616,2109.5,2109.1,0.46537889]
[1773434684952,1.18511495,2109.5,2109.1,0.46537889]
[1773434689552,0.49223997,2109.5,2109.1,0.46537889]
[1773434690255,0.49223997,2109.5,2109.2,0.49959177]
[1773434690423,0.002,2109.3,2109.2,0.49959177]
[1773434691156,0.002,2109.3,2109.1,0.49484732]
[1773434694365,0.002,2109.5,2109.1,1.6801695]
[1773434694570,1.1871175,2109.5,2109.2,0.49484732]
[1773434694739,0.002,2109.5,2109.2,0.49484732]
[1773434694940,0.002,2109.7,2109.2,0.49484732]
[1773434695245,1.18700891,2109.7,2109.2,0.49484732]
[1773434695446,0.002,2109.7,2109.2,0.49484732]
[1773434695658,1.65529519,2109.7,2109.2,0.49484732]
[1773434695835,0.46828874,2109.6,2109.2,0.49484732]
[1773434696458,1.18700645,2109.7,2109.2,0.49484732]
[1773434696459,0.002,2109.7,2109.2,0.49484732]
[1773434696761,0.46828874,2110.1,2109.5,0.49484732]
[1773434696935,0.46828874,2110.1,2109.6,1.793]
[1773434697136,0.46828874,2110.1,2109.1,0.09711414]
[1773434698356,0.46828874,2110.1,2109.3,0.09711414]
[1773434698739,0.46828874,2109.9,2109.3,0.09711414]
[1773434701470,0.46828874,2109.7,2109.3,0.09711414]
[1773434701865,0.46828874,2109.7,2109.0,0.09811414]
[1773434702067,0.46828874,2109.7,2109.1,1.796]
[1773434702281,0.46828874,2109.7,2109.0,0.001]
[1773434702936,0.46828874,2109.7,2109.3,0.001]
[1773434703135,0.47028874,2109.7,2109.3,0.001]
[1773434703365,0.47028874,2109.7,2109.4,1.776]
[1773434703967,1.18505877,2109.6,2109.4,1.776]
[1773434704266,0.46828874,2109.5,2109.0,0.09811414]
[1773434705772,0.46828874,2109.5,2109.1,1.779]
[1773434706366,1.18517113,2109.4,2109.1,1.779]
[1773434706570,0.46828874,2109.3,2109.1,1.779]
[1773434708876,1.18520642,2109.4,2109.1,1.87611414]
[1773434711760,0.46828874,2109.4,2109.1,1.779]
[1773434712182,0.46828874,2109.4,2109.1,1.87611414]
[1773434714960,1.65348705,2109.4,2109.2,0.001]
[1773434715163,0.002,2109.3,2109.2,0.001]
[1773434717967,0.47028874,2109.3,2109.2,0.001]
[1773434718166,0.47028874,2109.3,2109.0,0.001]
[1773434719470,1.18528351,2109.2,2109.1,1.794]
[1773434719670,1.65357225,2109.2,2109.1,1.794]
[1773434720058,1.65357225,2109.2,2109.0,0.001]
[1773434721354,1.65357225,2109.2,2109.1,1.795]
[1773434722154,1.65357225,2109.2,2109.0,0.001]
[1773434723480,1.65357225,2109.2,2109.1,1.795]
[1773434724184,1.65357225,2109.2,2108.8,0.09811414]
[1773434725765,1.18528351,2109.2,2108.9,1.796]
[1773434725972,0.45602886,2109.1,2108.9,1.796]
[1773434726174,1.64141098,2109.1,2108.9,1.796]
[1773434727156,0.45602886,2109.1,2108.9,1.796]
[1773434727880,1.641383,2109.1,2108.9,1.796]
[1773434728076,0.002,2109.0,2108.9,1.796]
[1773434728285,0.45802886,2109.0,2108.8,0.001]
[1773434729858,0.45802886,2109.0,2108.9,1.791]
[1773434730054,1.18545213,2108.9,2108.8,0.001]
[1773434730258,1.64148099,2108.9,2108.8,0.001]
[1773434731064,0.45602886,2108.9,2108.8,0.001]
[1773434731976,0.45602886,2108.9,2108.8,1.781]
[1773434732182,0.45602886,2108.7,2108.6,0.001]
[1773434732574,1.18550834,2108.8,2108.6,0.001]
[1773434733559,1.6415372,2108.8,2108.6,0.001]
[1773434733754,0.45602886,2108.7,2108.6,0.001]
[1773434734165,0.45602886,2108.7,2108.5,0.001]
[1773434736384,0.45602886,2108.7,2108.6,1.772]
[1773434737484,1.64159342,2108.7,2108.5,0.001]
[1773434737983,0.45602886,2108.7,2108.5,0.001]
[1773434739567,0.45602886,2108.7,2108.6,1.778]
[1773434741184,0.45802886,2108.7,2108.6,1.778]
[1773434747290,0.002,2109.0,2108.7,0.09811414]
[1773434747467,0.002,2109.5,2108.7,0.09811414]
[1773434747468,4.74301869,2109.3,2108.8,0.09811414]
[1773434747663,1.63787588,2109.2,2108.8,0.09811414]
[1773434748075,0.45254807,2109.1,2108.8,0.09811414]
[1773434749897,1.63792158,2109.1,2108.8,0.09811414]
[1773434751766,1.63792158,2109.1,2108.7,0.04742258]
[1773434751991,1.63792158,2109.1,2108.7,0.53836328]
[1773434753195,1.63792158,2109.1,2108.8,0.001]
[1773434753365,1.63792158,2109.1,2108.8,0.4919407]
[1773434753570,0.002,2109.0,2108.8,0.4919407]
[1773434763880,0.002,2109.0,2108.9,0.4909407]
[1773434768318,0.002,2109.0,2108.8,0.4919407]
[1773434772326,0.002,2109.0,2108.8,1.67743759]
[1773434776643,0.002,2109.0,2108.9,0.4909407]
[1773434776926,0.45061825,2109.6,2109.0,0.4909407]
[1773434777126,4.74012146,2109.7,2109.2,0.4909407]
[1773434777127,0.45061825,2109.7,2109.2,0.4909407]
[1773434777327,0.45061825,2109.6,2109.1,3.357]
[1773434777703,0.45061825,2109.6,2109.1,3.8479407]
[1773434778032,0.002,2109.2,2109.1,3.8479407]
[1773434780443,1.63777152,2109.5,2109.1,3.89535428]
[1773434780932,0.45261825,2109.5,2109.2,0.4909407]
[1773434781237,0.002,2109.5,2109.2,0.4909407]
[1773434782128,0.45833383,2109.7,2109.2,0.48290208]
[1773434782325,0.002,2109.8,2109.4,0.48290208]
[1773434786123,0.46033383,2109.8,2109.4,0.48290208]
[1773434787518,1.6452903,2109.8,2109.4,0.48290208]
[1773434788440,1.6452903,2109.8,2109.5,0.48290208]
[1773434788630,1.6452903,2109.8,2109.6,1.799]
[1773434802944,1.6452903,2109.8,2109.7,0.001]
[1773434808354,0.47304904,2109.7,2109.2,0.001]
[1773434808728,0.47304904,2109.7,2109.2,0.45875647]
[1773434809626,0.47304904,2109.7,2109.3,1.798]
[1773434811266,0.48515727,2109.5,2108.8,0.001]
[1773434811469,0.48515727,2109.5,2108.8,1.18650182]
[1773434811763,0.48515727,2109.5,2108.9,0.04741808]
[1773434812437,0.48515727,2109.5,2109.0,1.783]
[1773434814252,0.48515727,2109.3,2109.0,1.783]
[1773434814623,0.48515727,2109.3,2109.0,2.27388421]
[1773434816444,0.48515727,2109.3,2109.2,0.001]
[1773434817640,1.67038459,2109.3,2109.2,0.001]
[1773434832048,1.64909421,2109.3,2109.2,0.001]
[1773434841897,1.65109421,2109.3,2109.2,0.001]
[1773434847490,0.002,2109.3,2109.2,0.001]
[1773434847793,1.18520189,2109.4,2109.2,0.001]
[1773434850896,1.18710336,2109.6,2109.2,0.47460567]
[1773434853399,1.18710336,2109.6,2109.2,1.65988058]
[1773434853593,1.18710336,2109.6,2109.3,0.47360567]
[1773434853995,1.18710336,2109.6,2109.4,0.001]
[1773434861290,0.002,2109.6,2109.4,0.47460567]
[1773434864704,1.18705877,2109.6,2109.4,0.47460567]
[1773434865004,1.67529959,2109.6,2109.4,0.001]
[1773434865387,1.18705877,2109.6,2109.4,0.47869371]
[1773434865586,0.002,2109.8,2109.5,0.47769371]
[1773434866404,0.002,2109.8,2109.6,2.26869371]
[1773434870001,0.002,2109.8,2109.7,0.47769371]
[1773434870203,0.002,2109.8,2109.6,1.791]
[1773434870508,0.002,2109.8,2109.6,2.26869371]
[1773434877917,4.73794825,2110.7,2109.8,0.46765584]
[1773434878089,11.19694675,2111.1,2109.6,1.791]
[1773434878090,0.47753685,2110.6,2109.7,0.46765584]
[1773434878614,0.47753685,2110.6,2109.9,0.46765584]
[1773434880096,0.002,2110.1,2110.0,0.46765584]
[1773434882836,1.18460955,2110.4,2109.9,1.18487961]
[1773434882998,1.18380955,2110.4,2109.9,1.18487961]
[1773434883198,1.18380955,2110.4,2110.0,0.46685584]
[1773434883922,0.47753685,2110.3,2110.0,0.46685584]
[1773434884695,0.47753685,2110.4,2110.0,0.46685584]
[1773434891230,0.47753685,2110.2,2109.8,0.46865584]
[1773434891630,0.47953685,2110.2,2109.8,0.46865584]
[1773434891834,0.47953685,2110.2,2110.0,0.001]
[1773434892811,0.002,2110.2,2110.0,0.001]
[1773434893332,0.47953685,2110.2,2110.0,0.001]
[1773434895633,1.66426433,2110.2,2110.0,0.001]
[1773434899217,1.66426433,2110.2,2109.9,0.283131]
[1773434899418,0.47753685,2110.1,2109.8,0.001]
[1773434899838,1.66237097,2110.0,2109.8,0.001]
[1773434900646,1.66237097,2110.0,2109.9,1.793]
[1773434901248,3.77731457,2111.8,2110.5,0.46658736]
[1773434901249,0.45895393,2111.7,2110.5,0.46658736]
[1773434901416,0.45895393,2111.7,2110.8,0.46658736]
[1773434901621,0.45895393,2111.7,2111.0,0.46658736]
[1773434901828,0.45895393,2111.7,2111.1,1.768]
[1773434902019,0.45895393,2111.5,2111.2,1.748]
[1773434902222,0.45895393,2111.5,2110.9,0.46658736]
[1773434903346,0.45895393,2111.5,2111.0,2.20258736]
[1773434903656,0.45895393,2111.5,2111.1,0.46658736]
[1773434903943,4.73543443,2111.8,2111.1,0.46658736]
[1773434903944,5.19426424,2111.8,2111.1,0.46658736]
[1773434904157,5.19426424,2111.8,2111.2,0.46658736]
[1773434904158,1.64277815,2111.8,2111.2,0.46658736]
[1773434904657,0.45895393,2111.7,2111.2,0.46658736]
[1773434905153,0.73656696,2112.3,2111.2,0.46658736]
[1773434905154,1.86843239,2112.7,2111.6,0.73656696]
[1773434905361,5.41858963,2112.7,2111.7,0.46658736]
[1773434905520,1.18340197,2112.6,2111.9,0.5]
[1773434907455,0.27533303,2112.3,2111.5,0.46658736]
[1773434907723,0.27533303,2112.0,2111.1,0.46658736]
[1773434908270,0.27533303,2111.8,2111.1,0.46658736]
[1773434908451,0.27533303,2111.7,2111.1,0.46658736]
[1773434908837,0.27533303,2111.7,2111.2,1.642]
[1773434911070,5.09922082,2112.8,2111.3,0.46658736]
[1773434911071,0.27533303,2112.4,2111.3,0.46658736]
[1773434913181,4.73365726,2112.6,2111.3,0.46658736]
[1773434913182,1.45870896,2112.6,2111.5,0.46658736]
[1773434913376,0.27533303,2112.5,2111.5,0.46658736]
[1773434914347,1.18337593,2112.6,2111.5,0.46658736]
[1773434914768,1.45870896,2112.6,2111.5,0.46658736]
[1773434914950,0.27533303,2112.5,2111.5,0.46658736]
[1773434915453,1.45880767,2112.5,2111.6,1.18393635]
[1773434915780,0.27533303,2112.4,2111.7,0.46658736]
[1773434917251,0.002,2112.3,2111.7,0.46658736]
[1773434917447,0.29455473,2112.3,2111.7,0.46658736]
[1773434917751,0.29455473,2112.3,2111.8,0.46658736]
[1773434917988,0.002,2112.3,2111.9,1.736]
[1773434918271,0.6850859,2112.7,2112.0,0.46658736]
[1773434918472,2.16298407,2112.7,2112.0,0.46658736]
[1773434919853,2.16298407,2112.7,2112.1,1.65024343]
[1773434920055,2.16298407,2112.7,2112.2,0.46658736]
[1773434920357,0.37838327,2112.6,2112.2,0.46658736]
[1773434921473,1.86840758,2112.7,2112.2,0.46658736]
[1773434923357,2.32736151,2112.7,2112.2,0.46658736]
[1773434923980,0.45895393,2112.6,2112.2,0.46658736]
[1773434924483,0.45895393,2112.6,2112.0,0.46658736]
[1773434925393,0.614091,2112.4,2112.0,0.46658736]
[1773434925688,0.614091,2112.4,2111.9,3.58007666]
[1773434926496,1.18343195,2112.5,2112.0,0.66032345]
[1773434927004,1.79752295,2112.5,2112.0,0.66032345]
[1773434927873,0.614091,2112.4,2111.9,1.736]
[1773434929872,1.797635,2112.3,2111.9,1.736]
[1773434930078,0.614091,2112.2,2111.9,1.736]
[1773434932199,1.79772947,2112.2,2111.9,1.736]
[1773434932378,0.73582393,2112.1,2111.9,1.736]
[1773434934173,1.91951777,2112.1,2111.9,1.736]
[1773434939711,0.73582393,2112.0,2111.9,1.736]
[1773434939888,0.73582393,2111.5,2111.0,0.82391385]
[1773434940087,0.73582393,2111.5,2111.1,0.77854294]
[1773434940604,0.73582393,2111.8,2111.1,0.77854294]
[1773434941111,0.73582393,2111.8,2111.2,2.55854294]
[1773434941409,0.73582393,2111.8,2111.3,0.77854294]
[1773434943610,1.91970421,2111.7,2111.3,0.77854294]
[1773434944809,0.73582393,2111.6,2111.3,0.77854294]
[1773434945106,0.73582393,2111.6,2111.5,0.001]
[1773434946308,1.18388028,2111.7,2111.5,0.003]
[1773434946484,1.91968997,2111.8,2111.5,0.003]
[1773434947108,0.73582393,2111.7,2111.3,0.001]
[1773434948118,1.91976028,2111.6,2111.3,0.001]
[1773434948710,0.73582393,2111.5,2111.3,0.001]
[1773434950915,0.73582393,2111.4,2111.3,0.001]
[1773434951116,0.73582393,2111.4,2111.0,0.001]
[1773434952388,0.73582393,2111.4,2111.0,1.777]
[1773434953623,0.73582393,2111.2,2111.0,1.777]
[1773434955123,0.73582393,2111.2,2111.0,2.96126617]
[1773434955424,0.73582393,2111.2,2111.0,1.777]
[1773434955926,0.73582393,2111.4,2111.0,2.55354294]
[1773434959710,1.18410458,2111.3,2111.2,0.001]
[1773434960914,0.73782393,2111.6,2111.2,0.77754294]
[1773434961626,0.002,2111.6,2111.2,0.77754294]
[1773434961827,0.002,2111.6,2111.3,1.16850024]
[1773434964412,1.2390465,2111.6,2111.2,0.001]
[1773434964747,1.2390465,2111.6,2111.2,1.16950024]
[1773434966669,1.2390465,2111.6,2111.2,0.001]
[1773434966953,1.2370465,2111.3,2110.7,0.001]
[1773434967450,1.2370465,2111.3,2110.8,1.16850024]
[1773434968534,1.2370465,2111.3,2110.8,1.21587564]
[1773434969319,2.42117844,2111.3,2110.8,1.23172751]
[1773434969543,2.42117844,2111.3,2110.9,1.16850024]
[1773434971652,1.2370465,2111.3,2110.9,2.35282873]
[1773434971838,1.2370465,2111.3,2111.0,1.16850024]
[1773434972034,2.42116235,2111.3,2111.0,1.16850024]
[1773434972949,1.2370465,2111.3,2111.0,1.16850024]
[1773434973148,2.42115204,2111.3,2111.0,1.16850024]
[1773434974450,2.42115204,2111.3,2111.1,0.001]
[1773434974822,1.2390465,2111.2,2111.1,0.001]
[1773434976851,2.42320716,2111.2,2111.1,0.001]
[1773434977019,1.2370465,2111.1,2110.9,0.001]
[1773434978849,1.2370465,2110.9,2110.7,0.001]
[1773434979149,1.2370465,2110.9,2110.1,1.16950024]
[1773434980262,1.2370465,2110.9,2110.2,1.762]
[1773434980828,1.2370465,2110.7,2110.2,1.762]
[1773434985159,1.18449729,2110.6,2110.2,1.762]
[1773434985332,1.2370465,2110.5,2110.2,1.762]
[1773434987168,1.2370465,2110.5,2110.2,3.07973105]
[1773434987376,2.42163967,2110.5,2110.2,3.07973105]
[1773434989468,2.42163967,2110.5,2110.4,0.001]
[1773434990066,1.43679834,2110.8,2110.4,1.31873105]
[1773434990389,1.43679834,2110.9,2110.4,1.31873105]
[1773434992266,1.3780475,2110.7,2110.4,1.31873105]
[1773434993288,1.25430364,2110.7,2110.4,1.31873105]
[1773434993594,1.25430364,2110.7,2110.4,0.001]
[1773434994662,2.56254479,2110.6,2110.4,0.001]
[1773434995055,1.18444987,2110.7,2110.4,1.46044983]
[1773434995264,2.56232035,2111.0,2110.4,1.46044983]
[1773434996987,1.3780475,2110.9,2110.4,1.46044983]
[1773434997762,6.11692182,2111.1,2110.5,1.45944983]
[1773434998155,0.002,2111.1,2110.5,1.45944983]
[1773434998860,1.3800475,2111.1,2110.5,1.45944983]
[1773434999656,1.18427285,2111.0,2110.6,1.45944983]
[1773435000580,2.56429029,2111.1,2110.6,1.45944983]
[1773435000965,4.73875456,2111.2,2110.6,1.45944983]
[1773435000966,0.002,2111.2,2110.6,1.45944983]
[1773435001265,1.3780475,2111.1,2110.6,1.45944983]
[1773435001674,1.18427285,2111.0,2110.6,1.45944983]
[1773435001883,2.56232035,2111.0,2110.6,1.45944983]
[1773435002202,0.002,2110.9,2110.6,1.45944983]
[1773435003398,1.3800475,2110.9,2110.5,2.64399931]
[1773435003572,1.3800475,2110.9,2110.6,3.24244983]
[1773435003773,2.56441761,2110.9,2110.6,3.24244983]
[1773435004603,1.3780475,2110.8,2110.6,1.783]
[1773435005340,1.3780475,2110.8,2110.4,1.46044983]
[1773435005680,1.3780475,2110.8,2110.4,0.001]
[1773435005889,2.56248868,2110.7,2110.4,0.001]
[1773435006287,2.56248868,2110.7,2110.5,1.787]
[1773435008477,1.18444118,2110.7,2110.5,1.787]
[1773435008682,1.3780475,2110.6,2110.5,1.787]
[1773435009207,1.3780475,2110.6,2110.4,0.001]
[1773435010313,2.56260092,2110.5,2110.4,0.001]
[1773435010510,1.18454183,2110.6,2110.4,1.792]
[1773435010711,2.56258933,2110.6,2110.4,1.792]
[1773435010899,1.3780475,2110.5,2110.4,1.792]
[1773435011094,1.3780475,2110.5,2110.2,1.45944983]
[1773435012281,2.56264452,2110.5,2110.2,1.45944983]
[1773435012480,2.56264452,2110.5,2110.3,1.793]
[1773435013106,2.54799193,2110.5,2110.3,1.793]
[1773435014804,2.54799193,2110.5,2110.3,1.794]
[1773435015005,1.18459702,2110.5,2110.3,1.794]
[1773435015188,1.3780475,2110.4,2110.3,1.794]
[1773435017008,2.56265705,2110.4,2110.1,1.46044983]
[1773435017187,1.3780475,2110.3,2110.0,6.66944998]
[1773435017711,1.3780475,2110.3,2110.0,5.2351]
[1773435018486,1.3780475,2110.3,2110.1,1.796]
[1773435020017,2.56265705,2110.4,2110.1,1.796]
[1773435020593,1.18460955,2110.4,2110.2,1.45944983]
[1773435021019,1.18453688,2110.6,2110.2,1.5068387]
[1773435021218,1.18453688,2110.6,2110.2,1.45944983]
[1773435021395,6.36204367,2110.7,2110.2,1.45944983]
[1773435022111,6.36204367,2110.7,2110.2,1.18471659]
[1773435022316,6.36204367,2110.7,2110.3,1.5136953]
[1773435026729,1.6242706,2110.6,2110.3,1.5136953]
[1773435026927,2.8088142,2110.6,2110.3,1.5146953]
[1773435027127,0.002,2110.5,2110.3,1.5146953]
[1773435032027,0.002,2110.5,2110.3,0.001]
[1773435032326,1.6262706,2110.5,2110.3,0.001]
[1773435034829,0.002,2110.5,2110.3,1.57818067]
[1773435035234,0.002,2110.7,2110.4,1.57718067]
[1773435035412,1.1864417,2110.7,2110.4,1.57718067]
[1773435035604,0.002,2110.7,2110.4,1.57718067]
[1773435035808,1.18644454,2110.7,2110.4,1.57718067]
[1773435038209,2.81071514,2110.7,2110.4,1.57718067]
[1773435038615,2.81071514,2110.7,2110.3,0.001]
[1773435038616,1.6242706,2110.6,2110.3,1.5953276]
[1773435040135,1.18455342,2110.5,2110.3,1.5953276]
[1773435040627,0.002,2110.4,2110.3,1.5953276]
[1773435041128,0.002,2110.4,2110.3,0.001]
[1773435059119,0.002,2110.4,2110.3,1.806]
[1773435060956,1.59705134,2110.4,2110.0,5.2351]
[1773435061156,1.59505134,2110.2,2109.8,0.001]
[1773435061318,1.59505134,2110.2,2109.7,5.2351]
[1773435063036,2.77981713,2110.2,2109.8,1.68460994]
[1773435063244,0.002,2110.4,2109.8,1.73200779]
[1773435063245,2.77976218,2110.3,2109.8,1.73200779]
[1773435063439,0.002,2110.4,2110.0,1.68460994]
[1773435063754,1.1865754,2110.5,2110.2,1.68460994]
[1773435063755,0.002,2110.5,2110.2,1.68460994]
[1773435063940,1.18645931,2110.7,2110.2,1.68460994]
[1773435064259,1.18645931,2110.7,2110.4,1.68460994]
[1773435064458,1.51000334,2110.8,2110.5,3.48660994]
[1773435064761,1.18439076,2110.8,2110.5,3.48660994]
[1773435066520,1.18439076,2110.8,2110.5,3.48760994]
[1773435066841,0.002,2110.6,2110.5,3.48760994]
[1773435069551,0.002,2110.6,2110.5,1.803]
[1773435071154,0.002,2110.6,2110.3,0.001]
[1773435071328,1.59705134,2110.6,2110.1,1.68460994]
[1773435071821,1.18455342,2110.5,2110.1,1.68460994]
[1773435072021,2.77960476,2110.5,2110.1,1.68460994]
[1773435072224,1.59505134,2110.4,2110.1,1.68460994]
[1773435072423,1.59505134,2110.4,2110.2,1.805]
[1773435073860,1.57785523,2110.4,2110.2,1.805]
[1773435074047,2.77964422,2110.5,2110.2,1.805]
[1773435074250,2.77964422,2110.5,2110.2,3.48960994]
[1773435077045,1.59505134,2110.4,2110.0,1.68560994]
[1773435077548,1.59505134,2110.4,2110.0,0.001]
[1773435077870,1.59505134,2110.4,2109.7,1.68460994]
[1773435078069,1.59505134,2110.4,2109.7,1.73201004]
[1773435078268,1.59505134,2110.4,2109.8,1.806]
[1773435078438,1.59505134,2110.4,2109.8,3.49060994]
[1773435078941,1.59505134,2110.2,2109.8,3.49060994]
[1773435079971,1.59505134,2110.2,2109.9,0.001]
[1773435081778,1.18477797,2110.1,2109.9,0.001]
[1773435084978,1.75695576,2110.1,2109.9,0.001]
[1773435087553,2.94178561,2110.1,2109.7,0.31737907]
[1773435088279,1.75715542,2110.0,2109.7,0.31737907]
[1773435088779,1.75715542,2110.0,2109.8,1.805]
[1773435091882,1.75715542,2110.0,2109.9,0.001]
[1773435094890,1.75715542,2110.2,2109.9,0.001]
[1773435097087,1.18477797,2110.1,2109.9,0.001]
[1773435098992,2.94193339,2110.1,2109.9,0.001]
[1773435099502,0.002,2110.5,2110.1,0.30859234]
[1773435099685,1.18655563,2110.5,2110.1,0.30859234]
[1773435099874,1.18655605,2110.5,2110.1,0.30859234]
[1773435101779,2.94371147,2110.5,2110.1,0.30859234]
[1773435103411,1.75715542,2110.4,2110.1,0.30859234]
[1773435104804,0.002,2110.3,2110.1,0.30859234]
[1773435109505,0.002,2110.3,2110.0,0.001]
[1773435109821,1.91345159,2110.3,2110.0,0.001]
[1773435110192,3.09812511,2110.3,2110.0,0.001]
[1773435110715,1.18667352,2110.3,2110.0,0.001]
[1773435113786,0.002,2110.3,2110.0,0.001]
[1773435116298,1.91345159,2110.3,2110.0,0.001]
[1773435117012,3.09814251,2110.3,2110.0,0.001]
[1773435117321,3.09814251,2110.3,2110.2,0.001]
[1773435118016,0.002,2110.3,2110.2,0.001]
[1773435119296,1.18666568,2110.3,2110.2,0.001]
[1773435122103,0.002,2110.3,2110.2,0.001]
[1773435128312,1.91345159,2110.3,2109.7,0.001]
[1773435128524,1.91095159,2110.2,2109.7,0.001]
[1773435128726,1.91015159,2110.2,2109.7,0.0002]
[1773435129355,1.91055159,2110.0,2109.7,0.0002]
[1773435129516,1.91055159,2110.0,2109.8,1.788]
[1773435129717,1.91055159,2110.2,2109.8,1.788]
[1773435130148,0.002,2110.1,2109.8,1.788]
[1773435130455,0.002,2110.1,2110.0,0.001]
[1773435131446,0.002,2110.5,2110.0,0.001]
[1773435131447,1.1866029,2110.5,2110.0,0.001]
[1773435131647,3.09715449,2110.5,2110.0,0.001]
[1773435131822,1.91055159,2110.4,2110.0,0.001]
[1773435133543,1.91055159,2110.3,2110.0,0.001]
[1773435134253,1.88837099,2110.3,2110.0,0.001]
[1773435136954,3.07303695,2110.3,2110.0,0.001]
[1773435138954,1.88837099,2110.3,2110.0,0.001]
[1773435141759,3.08411363,2110.4,2110.0,0.001]
[1773435142464,1.89946129,2110.3,2110.0,0.001]
[1773435142963,1.89946129,2110.3,2110.2,0.001]
[1773435143457,1.90146129,2110.3,2110.2,0.001]
[1773435155275,0.002,2110.5,2110.2,0.001]
[1773435155664,6.63881107,2110.9,2110.2,0.001]
[1773435155851,3.08387017,2110.8,2110.2,0.001]
[1773435158280,3.08581905,2110.9,2110.2,0.001]
[1773435160475,1.89946129,2110.8,2110.2,0.001]
[1773435161877,3.08387029,2110.8,2110.2,0.001]
[1773435162085,1.89946129,2110.7,2110.2,0.001]
[1773435166987,1.89946129,2110.7,2110.4,0.001]
[1773435167159,3.08394568,2110.7,2110.5,1.788]
[1773435167789,3.08594568,2110.7,2110.5,1.788]
[1773435171086,1.89946129,2110.6,2110.4,0.001]
[1773435172188,0.002,2110.7,2110.4,0.001]
[1773435172361,0.002,2110.7,2110.5,1.788]
[1773435175217,1.18626294,2111.1,2110.6,1.55357498]
[1773435175506,1.18626294,2111.1,2110.7,1.55090408]
[1773435175868,2.90518003,2111.1,2110.7,1.55090408]
[1773435176908,1.71891709,2111.0,2110.7,1.55090408]
[1773435179831,0.002,2110.8,2110.7,1.55090408]
[1773435180192,1.67508874,2111.0,2110.7,2.73533702]
[1773435180382,5.47253549,2111.5,2110.7,2.73533702]
[1773435180383,1.71891709,2111.5,2111.0,1.64199968]
[1773435180776,1.18397544,2111.6,2111.2,1.63924935]
[1773435181200,2.90289253,2111.6,2111.2,1.63924935]
[1773435183188,1.71891709,2111.8,2111.3,1.66468892]
[1773435183708,1.18365607,2112.1,2111.4,1.66468892]
[1773435183709,1.71891709,2112.0,2111.4,1.66468892]
[1773435183885,1.71891709,2112.0,2111.6,1.66468892]
[1773435184617,2.90263208,2112.0,2111.7,3.45368892]
[1773435184985,2.90263208,2112.0,2111.7,1.789]
[1773435185382,1.71891709,2111.9,2111.7,1.789]
[1773435185908,2.90271785,2111.9,2111.7,1.789]
[1773435187888,1.71891709,2111.8,2111.4,1.66468892]
[1773435188299,1.71891709,2111.8,2111.4,1.18404816]
[1773435188610,1.71891709,2111.8,2111.5,1.66468892]
[1773435188784,1.71891709,2112.0,2111.5,1.66468892]
[1773435189184,1.71891709,2112.0,2111.7,1.66468892]
[1773435189888,1.71891709,2112.1,2111.7,1.66468892]
[1773435190289,1.71891709,2112.4,2111.8,1.66468892]
[1773435191317,2.90229762,2112.6,2111.9,1.66468892]
[1773435191532,0.6850859,2112.7,2111.9,1.66468892]
[1773435191838,3.13872961,2113.4,2112.3,1.66468892]